bitfinex-derivatives/quotes_BTCF0:USTF0_20241223
["timestamp","ask_amount","ask_price","bid_price","bid_amount"]
[1734986860407,0.414564,93115.0,93113.0,0.053765]
[1734986860597,0.414564,93115.0,93103.0,0.02826344]
[1734986860899,0.415564,93115.0,93103.0,0.02826344]
[1734986861100,0.415564,93115.0,93095.0,0.3608]
[1734986861287,0.415564,93115.0,93087.0,0.3608]
[1734986861487,0.415564,93115.0,93096.0,0.053774]
[1734986861688,0.415564,93115.0,93087.0,0.3608]
[1734986861689,0.416564,93115.0,93100.0,0.13600867]
[1734986861884,0.416564,93115.0,93098.0,0.08217556]
[1734986862399,0.414564,93115.0,93098.0,0.08217556]
[1734986862703,0.416564,93115.0,93098.0,0.08217556]
[1734986863201,0.416564,93115.0,93098.0,0.02840256]
[1734986863398,0.416564,93115.0,93099.0,1.5]
[1734986864103,0.420564,93115.0,93099.0,1.5]
[1734986864706,0.420564,93115.0,93098.0,0.02840256]
[1734986864999,0.3668,93115.0,93114.0,0.053764]
[1734986865190,0.3658,93115.0,93114.0,0.053764]
[1734986865391,0.3658,93115.0,93099.0,0.1365]
[1734986865699,0.053766,93111.0,93109.0,0.053767]
[1734986866593,0.3628,93115.0,93103.0,0.3608]
[1734986866899,0.3628,93115.0,93113.0,0.053765]
[1734986867104,0.3618,93115.0,93113.0,0.053765]
[1734986867995,0.001,93115.0,93113.0,0.053765]
[1734986868394,0.001,93115.0,93109.0,0.001]
[1734986868589,0.001,93115.0,93104.0,0.1375]
[1734986868590,0.415564,93115.0,93108.0,0.053768]
[1734986868901,0.415564,93115.0,93103.0,0.3638]
[1734986868902,0.053766,93111.0,93103.0,0.3638]
[1734986869092,0.36140001,93115.0,93109.0,0.053767]
[1734986869293,0.3618,93115.0,93109.0,0.053767]
[1734986869602,0.3618,93115.0,93113.0,0.055765]
[1734986869796,0.3608,93115.0,93113.0,0.055765]
[1734986870007,0.3608,93115.0,93113.0,0.053765]
[1734986870303,0.3608,93115.0,93109.0,0.001]
[1734986870496,0.3618,93115.0,93109.0,0.054767]
[1734986870693,0.3618,93115.0,93113.0,0.053765]
[1734986871500,0.001,93115.0,93113.0,0.053765]
[1734986871895,0.3608,93115.0,93103.0,0.44290757]
[1734986872188,0.3608,93134.0,93114.0,0.3608]
[1734986872389,0.3608,93142.0,93123.0,0.3608]
[1734986872700,0.3608,93142.0,93129.0,0.3608]
[1734986873007,0.3608,93142.0,93129.0,1.5]
[1734986873301,0.053752,93135.0,93129.0,1.5]
[1734986873706,0.053752,93135.0,93129.0,1.553755]
[1734986873895,0.414548,93142.0,93129.0,1.553755]
[1734986874095,0.414548,93142.0,93129.0,1.5]
[1734986874293,0.414548,93142.0,93132.0,0.053753]
[1734986874603,0.414548,93142.0,93141.0,0.053749]
[1734986874604,0.3628,93142.0,93141.0,0.053749]
[1734986875294,0.3608,93142.0,93141.0,0.053749]
[1734986875490,0.3638,93142.0,93141.0,0.053749]
[1734986876004,0.3688,93142.0,93141.0,0.053749]
[1734986876205,0.3708,93142.0,93141.0,0.053749]
[1734986878102,0.3708,93142.0,93135.0,0.053752]
[1734986878308,0.05375,93140.0,93135.0,0.053752]
[1734986878512,0.37144,93142.0,93130.0,0.02804507]
[1734986878707,0.3608,93131.0,93128.0,0.053756]
[1734986879003,0.3608,93131.0,93113.0,0.3608]
[1734986879203,0.3608,93123.0,93121.0,0.05376]
[1734986879396,0.3608,93123.0,93113.0,0.3608]
[1734986879602,0.053761,93119.0,93117.0,0.053762]
[1734986880102,0.053761,93119.0,93113.0,0.02807914]
[1734986880303,0.3608,93114.0,93110.0,0.00161086]
[1734986880511,0.414566,93111.0,93110.0,0.00161086]
[1734986880900,0.3608,93111.0,93105.0,0.03603775]
[1734986881206,0.053772,93101.0,93100.0,0.053772]
[1734986881507,0.053775,93097.0,93093.0,0.053776]
[1734986881802,0.3608,93102.0,93091.0,0.03489128]
[1734986882003,0.3608,93102.0,93101.0,0.053772]
[1734986882207,0.3608,93102.0,93085.0,1.5]
[1734986882398,0.3608,93090.0,93085.0,1.5]
[1734986882812,0.414578,93090.0,93089.0,0.053779]
[1734986883305,0.3608,93090.0,93089.0,0.053779]
[1734986884109,0.001,93097.0,93089.0,0.053779]
[1734986884110,0.3608,93102.0,93101.0,0.053772]
[1734986884310,0.30977445,93118.0,93101.0,0.3608]
[1734986884495,0.053766,93112.0,93108.0,0.13600867]
[1734986884702,0.053766,93112.0,93105.0,0.053769]
[1734986884703,0.3608,93109.0,93105.0,0.053769]
[1734986885201,0.25601245,93118.0,93108.0,1.553768]
[1734986885396,0.01238832,93128.0,93117.0,0.053763]
[1734986885601,0.3608,93142.0,93129.0,0.053756]
[1734986885602,0.053753,93135.0,93129.0,0.053756]
[1734986885808,0.053753,93135.0,93124.0,0.339556]
[1734986885809,0.3608,93132.0,93124.0,0.339556]
[1734986886009,0.3608,93132.0,93130.0,0.053755]
[1734986886911,0.053747,93145.0,93120.0,0.13600867]
[1734986887111,0.3608,93136.0,93135.0,0.18976067]
[1734986887306,0.3608,93136.0,93135.0,0.053752]
[1734986887509,0.053735,93166.0,93156.0,0.05374]
[1734986887708,0.31963886,93169.0,93162.0,0.053737]
[1734986887912,0.37337186,93169.0,93162.0,0.053737]
[1734986888412,0.053735,93166.0,93156.0,0.3608]
[1734986888613,0.009,93157.0,93156.0,0.3608]
[1734986888809,0.009,93157.0,93156.0,0.41454]
[1734986889213,0.001,93169.0,93156.0,0.3608]
[1734986889409,0.001,93169.0,93159.0,0.13600867]
[1734986889612,0.001,93169.0,93168.0,0.053733]
[1734986889804,0.1241,93174.0,93173.0,0.05373]
[1734986890014,0.3608,93177.0,93176.0,0.053729]
[1734986890213,0.3608,93177.0,93168.0,0.053733]
[1734986890405,0.05373,93174.0,93168.0,0.053733]
[1734986890718,0.004,93169.0,93168.0,0.053733]
[1734986890906,0.004,93169.0,93161.0,0.053737]
[1734986891103,0.053735,93165.0,93161.0,0.053737]
[1734986891306,0.053735,93165.0,93162.0,0.053736]
[1734986891608,0.053741,93155.0,93150.0,0.13600867]
[1734986891804,0.3608,93151.0,93150.0,0.13600867]
[1734986892016,0.3608,93151.0,93148.0,0.053744]
[1734986892712,0.053744,93150.0,93148.0,0.09896871]
[1734986892912,0.053744,93150.0,93130.0,0.13600867]
[1734986892913,0.053747,93144.0,93130.0,0.13600867]
[1734986893115,0.053755,93130.0,93129.0,0.053755]
[1734986893316,0.3608,93130.0,93122.0,0.053759]
[1734986893515,0.3608,93125.0,93115.0,0.053764]
[1734986893718,0.053764,93115.0,93110.0,0.13761962]
[1734986894015,0.053764,93115.0,93110.0,0.19138562]
[1734986894215,0.3608,93116.0,93110.0,0.13761962]
[1734986894417,0.053766,93111.0,93110.0,0.00161095]
[1734986895312,0.3608,93115.0,93110.0,0.00161095]
[1734986895512,0.3608,93115.0,93113.0,0.053764]
[1734986896610,0.3618,93115.0,93113.0,0.053764]
[1734986897012,0.053766,93111.0,93110.0,0.00161095]
[1734986898714,0.054766,93111.0,93110.0,0.00161095]
[1734986899521,0.053769,93106.0,93097.0,1.5]
[1734986899719,0.3608,93106.0,93097.0,1.914574]
[1734986899921,0.3608,93106.0,93097.0,1.893343]
[1734986900221,0.3608,93106.0,93105.0,0.053769]
[1734986900819,0.3618,93106.0,93105.0,0.053769]
[1734986901421,0.3608,93141.0,93110.0,0.053767]
[1734986901716,0.3608,93141.0,93139.0,0.053749]
[1734986903726,0.3618,93141.0,93139.0,0.053749]
[1734986903925,0.3618,93141.0,93139.0,0.09802923]
[1734986905512,0.3608,93141.0,93139.0,0.09802923]
[1734986909130,0.04474157,93159.0,93139.0,0.09802923]
[1734986909131,0.3608,93161.0,93139.0,0.04428023]
[1734986909425,0.3608,93161.0,93160.0,0.053738]
[1734986909727,0.3608,93161.0,93151.0,0.11474667]
[1734986909923,0.3608,93161.0,93152.0,0.053742]
[1734986910123,0.3608,93161.0,93151.0,0.11474667]
[1734986910327,0.3618,93161.0,93157.0,0.053739]
[1734986910520,0.3708,93161.0,93157.0,0.053739]
[1734986910920,0.3708,93161.0,93140.0,0.13600867]
[1734986911224,0.3608,93151.0,93144.0,0.053747]
[1734986911425,0.053739,93158.0,93153.0,0.053741]
[1734986911733,0.36936001,93161.0,93155.0,0.05374]
[1734986911923,0.3638,93161.0,93155.0,0.05374]
[1734986912125,0.3708,93161.0,93155.0,0.05374]
[1734986912326,0.424537,93161.0,93155.0,0.05374]
[1734986912627,0.003,93158.0,93155.0,0.05374]
[1734986913030,0.003,93158.0,93156.0,0.05374]
[1734986913231,0.36836001,93161.0,93156.0,0.05374]
[1734986913531,0.005,93158.0,93156.0,0.05374]
[1734986914131,0.00456001,93161.0,93156.0,0.41454]
[1734986914328,0.007,93158.0,93157.0,0.053739]
[1734986914727,0.007,93158.0,93156.0,0.393279]
[1734986914931,0.011,93158.0,93157.0,0.053739]
[1734986915331,0.004,93158.0,93157.0,0.053739]
[1734986915525,0.053738,93160.0,93157.0,0.053739]
[1734986915726,0.004,93158.0,93157.0,0.053739]
[1734986916626,0.004,93158.0,93155.0,0.04507822]
[1734986916828,0.004,93158.0,93156.0,0.05374]
[1734986917126,0.007,93161.0,93160.0,0.053738]
[1734986917332,0.3608,93196.0,93181.0,0.053726]
[1734986917333,0.0965,93183.0,93181.0,0.053726]
[1734986918333,0.3608,93196.0,93181.0,0.053726]
[1734986918334,0.053719,93192.0,93181.0,0.04390739]
[1734986918534,0.150219,93192.0,93187.0,0.053722]
[1734986918722,0.150219,93192.0,93190.0,0.05372]
[1734986918928,0.05372,93191.0,93186.0,0.053723]
[1734986919232,0.004,93183.0,93181.0,0.001]
[1734986919629,0.004,93183.0,93181.0,0.0246977]
[1734986919934,0.004,93183.0,93182.0,0.3608]
[1734986920131,0.004,93183.0,93181.0,0.053726]
[1734986920639,0.3608,93196.0,93195.0,0.053718]
[1734986921639,0.3658,93196.0,93195.0,0.053718]
[1734986922030,0.3658,93196.0,93195.0,0.054718]
[1734986922234,0.3748,93196.0,93195.0,0.054718]
[1734986923439,0.014,93196.0,93195.0,0.054718]
[1734986924037,0.014,93196.0,93195.0,0.001]
[1734986924246,0.014,93196.0,93195.0,0.0453904]
[1734986924543,0.009,93196.0,93195.0,0.002]
[1734986924743,0.009,93196.0,93186.0,0.11672867]
[1734986924933,0.009,93196.0,93186.0,0.16070234]
[1734986924934,0.053722,93188.0,93186.0,0.16070234]
[1734986925135,0.053722,93188.0,93186.0,0.04397367]
[1734986925336,0.053722,93188.0,93186.0,0.053722]
[1734986925530,0.3608,93192.0,93190.0,0.05372]
[1734986925742,0.003,93196.0,93195.0,0.053718]
[1734986926040,0.06260213,93200.0,93199.0,0.053715]
[1734986927635,0.06760213,93200.0,93199.0,0.054715]
[1734986928038,0.07060213,93200.0,93199.0,0.001]
[1734986929542,0.07060213,93200.0,93195.0,0.04427513]
[1734986929847,0.053715,93199.0,93196.0,0.053717]
[1734986930041,0.053715,93199.0,93197.0,0.053716]
[1734986930232,0.053715,93199.0,93147.0,0.29273356]
[1734986930233,0.053718,93195.0,93194.0,0.04512632]
[1734986930433,0.3608,93198.0,93171.0,1.50072]
[1734986930637,0.3608,93198.0,93171.0,1.50152]
[1734986930638,0.414522,93188.0,93171.0,1.50152]
[1734986930839,0.053722,93187.0,93184.0,0.053724]
[1734986931047,0.3608,93188.0,93187.0,0.053722]
[1734986931342,0.3608,93197.0,93196.0,0.053717]
[1734986932240,0.06260213,93200.0,93199.0,0.053715]
[1734986932837,0.06260213,93200.0,93199.0,1.553715]
[1734986933736,0.06360213,93200.0,93199.0,1.556715]
[1734986933943,0.06360213,93200.0,93199.0,0.056715]
[1734986934143,0.06260213,93200.0,93199.0,0.053715]
[1734986934440,0.06360213,93200.0,93199.0,0.056715]
[1734986934845,0.06260213,93200.0,93199.0,0.002]
[1734986935041,0.06360213,93200.0,93199.0,0.058715]
[1734986935237,0.3608,93218.0,93199.0,0.058715]
[1734986935448,0.0969,93224.0,93208.0,0.13600867]
[1734986935636,0.053705,93218.0,93214.0,0.053706]
[1734986936237,0.3608,93219.0,93209.0,0.053709]
[1734986936440,0.053707,93214.0,93211.0,0.053708]
[1734986937143,0.053708,93212.0,93210.0,0.00076]
[1734986937449,0.053709,93210.0,93208.0,0.04419761]
[1734986937652,0.3608,93211.0,93207.0,0.05371]
[1734986937948,0.001,93214.0,93204.0,0.3608]
[1734986938145,0.053711,93207.0,93202.0,0.053713]
[1734986938447,0.001,93212.0,93210.0,0.053709]
[1734986939941,0.3608,93228.0,93210.0,0.053709]
[1734986940252,0.3608,93228.0,93223.0,0.053701]
[1734986940444,0.0537,93225.0,93219.0,0.053703]
[1734986940839,0.3608,93228.0,93214.0,0.49680867]
[1734986941040,0.3608,93228.0,93222.0,0.053702]
[1734986941242,0.414499,93228.0,93222.0,0.053702]
[1734986941441,0.1009,93224.0,93222.0,0.053702]
[1734986941738,0.1029,93224.0,93222.0,0.053702]
[1734986942454,0.1029,93224.0,93214.0,0.49680867]
[1734986942651,0.00056001,93260.0,93214.0,0.49680867]
[1734986942652,0.414492,93249.0,93223.0,0.414507]
[1734986942966,0.053694,93245.0,93236.0,0.13600867]
[1734986943141,0.053692,93248.0,93236.0,0.13600867]
[1734986943539,0.053695,93244.0,93240.0,0.053696]
[1734986943743,0.053695,93244.0,93236.0,0.13600867]
[1734986944046,0.3608,93249.0,93236.0,0.13600867]
[1734986944047,0.053698,93238.0,93236.0,0.13600867]
[1734986944247,0.3608,93240.0,93229.0,0.00072]
[1734986944445,0.3608,93240.0,93228.0,0.18971267]
[1734986944650,0.3608,93240.0,93230.0,0.13600867]
[1734986944849,0.3608,93231.0,93230.0,0.18971167]
[1734986945154,0.3608,93231.0,93230.0,0.053703]
[1734986945847,0.3608,93231.0,93221.0,0.11550612]
[1734986946152,0.3608,93231.0,93203.0,0.19133356]
[1734986946153,0.053715,93208.0,93203.0,0.19133356]
[1734986946356,0.3608,93222.0,93203.0,0.19133356]
[1734986946357,0.33932,93204.0,93203.0,0.19133356]
[1734986946550,0.33932,93204.0,93203.0,0.24454447]
[1734986947942,0.33932,93204.0,93203.0,0.05421091]
[1734986948954,0.33932,93204.0,93203.0,0.05621091]
[1734986949652,0.053723,93194.0,93175.0,0.053734]
[1734986949959,0.053732,93179.0,93174.0,0.25511142]
[1734986950152,0.0993,93178.0,93177.0,0.053733]
[1734986950463,0.053734,93175.0,93174.0,0.30789238]
[1734986950847,0.0993,93178.0,93167.0,0.053739]
[1734986951158,0.414538,93168.0,93167.0,0.053739]
[1734986951942,0.3608,93168.0,93167.0,0.053739]
[1734986952142,0.001,93178.0,93177.0,0.053733]
[1734986952651,0.053738,93168.0,93167.0,0.004]
[1734986952857,0.414538,93168.0,93167.0,0.004]
[1734986953254,0.414538,93168.0,93167.0,1.506]
[1734986953550,0.415538,93168.0,93167.0,1.504]
[1734986953751,0.415538,93168.0,93167.0,0.004]
[1734986954143,0.415538,93168.0,93167.0,0.00547044]
[1734986954547,0.3618,93168.0,93167.0,0.05920944]
[1734986954754,0.3618,93168.0,93166.0,0.03786695]
[1734986955056,0.3618,93168.0,93167.0,0.053739]
[1734986955443,0.001,93168.0,93167.0,0.053739]
[1734986955859,0.001,93168.0,93167.0,1.553739]
[1734986956151,0.001,93168.0,93167.0,1.555739]
[1734986956758,0.001,93168.0,93167.0,1.553739]
[1734986956956,0.001,93168.0,93167.0,1.555739]
[1734986957451,0.3608,93184.0,93167.0,1.553739]
[1734986957757,0.3608,93184.0,93170.0,0.13600867]
[1734986957963,0.3608,93184.0,93178.0,0.053733]
[1734986958155,0.3608,93184.0,93180.0,0.053731]
[1734986958759,0.3618,93184.0,93182.0,0.05373]
[1734986959947,0.3618,93184.0,93170.0,0.0548235]
[1734986960152,0.3618,93184.0,93167.0,0.00076]
[1734986960153,0.053736,93173.0,93167.0,0.00076]
[1734986960361,0.053738,93170.0,93150.0,0.13600867]
[1734986960657,0.3608,93161.0,93150.0,0.13600867]
[1734986960856,0.3608,93151.0,93150.0,0.10728677]
[1734986962059,0.3608,93151.0,93150.0,0.05353777]
[1734986962257,0.3608,93151.0,93144.0,0.053752]
[1734986962560,0.3618,93151.0,93134.0,0.3608]
[1734986962750,0.3618,93151.0,93149.0,0.053749]
[1734986962953,0.3618,93151.0,93150.0,0.001]
[1734986963660,0.3618,93151.0,93149.0,0.053749]
[1734986963844,0.3608,93151.0,93149.0,0.053749]
[1734986964651,0.3608,93151.0,93145.0,1.480469]
[1734986964946,0.3608,93151.0,93149.0,0.053749]
[1734986965551,0.3628,93151.0,93150.0,0.0935]
[1734986965751,0.3628,93151.0,93150.0,1.5]
[1734986965959,0.3628,93151.0,93149.0,0.053749]
[1734986966261,0.3608,93150.0,93149.0,0.001]
[1734986967155,0.3608,93150.0,93148.0,0.05375]
[1734986967762,0.3668,93150.0,93149.0,1.501]
[1734986968260,0.3608,93150.0,93149.0,1.501]
[1734986969160,0.3608,93150.0,93149.0,1.5]
[1734986969755,0.3608,93150.0,93148.0,0.05475]
[1734986969956,0.3608,93150.0,93148.0,0.05375]
[1734986970153,0.3608,93150.0,93139.0,0.00161005]
[1734986970365,0.3608,93140.0,93139.0,0.10782713]
[1734986970555,0.3608,93140.0,93139.0,0.05536505]
[1734986970756,0.3608,93140.0,93139.0,0.10976419]
[1734986971463,0.3618,93140.0,93139.0,0.10976419]
[1734986971965,0.3608,93140.0,93139.0,0.10976419]
[1734986972164,0.3618,93140.0,93139.0,0.10976419]
[1734986972567,0.3608,93165.0,93164.0,0.053741]
[1734986972866,0.053744,93159.0,93155.0,0.13600867]
[1734986973162,0.3608,93156.0,93153.0,0.053747]
[1734986973667,0.3608,93156.0,93149.0,0.13600867]
[1734986973866,0.3608,93156.0,93154.0,0.053746]
[1734986974661,0.3608,93156.0,93141.0,1.50072]
[1734986974968,0.002,93159.0,93146.0,0.13600867]
[1734986975168,0.002,93159.0,93158.0,0.053744]
[1734986975558,0.0962,93172.0,93158.0,0.053744]
[1734986975754,0.0962,93172.0,93168.0,0.053738]
[1734986975959,0.0962,93172.0,93168.0,1.553738]
[1734986976164,0.0962,93172.0,93168.0,1.60712557]
[1734986976366,0.0962,93172.0,93168.0,0.10712557]
[1734986976569,0.149937,93172.0,93168.0,0.10712557]
[1734986976959,0.053738,93170.0,93168.0,0.05338757]
[1734986977161,0.053738,93170.0,93163.0,0.00072]
[1734986977461,0.053738,93170.0,93166.0,0.053739]
[1734986977662,0.053738,93170.0,93167.0,0.053739]
[1734986978472,0.0982,93172.0,93163.0,0.053741]
[1734986978669,0.0982,93172.0,93168.0,0.053738]
[1734986979169,0.3608,93171.0,93162.0,0.05515245]
[1734986979369,0.3608,93163.0,93140.0,0.13600867]
[1734986979562,0.3608,93154.0,93137.0,0.3608]
[1734986979763,0.3608,93154.0,93150.0,0.053748]
[1734986980171,0.3608,93154.0,93151.0,0.053748]
[1734986980369,0.053747,93153.0,93151.0,0.053748]
[1734986981463,0.3628,93154.0,93140.0,0.13600867]
[1734986981665,0.053749,93150.0,93146.0,0.053751]
[1734986981870,0.053749,93150.0,93148.0,0.05375]
[1734986982066,0.3628,93154.0,93140.0,0.13600867]
[1734986982461,0.3608,93154.0,93153.0,0.053747]
[1734986982860,0.00056001,93163.0,93162.0,0.053742]
[1734986983064,0.053739,93168.0,93153.0,0.053747]
[1734986983262,0.3608,93164.0,93163.0,0.053741]
[1734986984259,0.3608,93164.0,93157.0,0.3608]
[1734986984260,0.0962,93172.0,93170.0,0.053737]
[1734986984668,0.0962,93172.0,93160.0,0.11474567]
[1734986985175,0.3608,93173.0,93172.0,0.053736]
[1734986985668,0.3608,93182.0,93181.0,0.053731]
[1734986985973,0.1939,93188.0,93184.0,0.053729]
[1734986986173,0.1939,93188.0,93185.0,0.053728]
[1734986986361,0.1939,93188.0,93187.0,0.053728]
[1734986986561,0.05340371,93203.0,93201.0,0.053719]
[1734986986562,0.1013,93202.0,93201.0,0.053719]
[1734986986774,0.053715,93209.0,93207.0,0.053716]
[1734986986976,0.35206699,93210.0,93208.0,0.053715]
[1734986987276,0.25686699,93210.0,93208.0,0.053715]
[1734986987770,0.1965,93219.0,93217.0,0.05371]
[1734986987979,0.3608,93223.0,93200.0,0.05372]
[1734986987980,0.3608,93223.0,93222.0,0.053707]
[1734986988373,0.3608,93223.0,93208.0,0.05370503]
[1734986988570,0.3608,93223.0,93203.0,0.0975]
[1734986988772,0.3608,93223.0,93218.0,0.053709]
[1734986989078,0.053708,93222.0,93217.0,0.05371]
[1734986989274,0.3608,93223.0,93210.0,0.13600867]
[1734986989477,0.3618,93223.0,93222.0,0.053707]
[1734986989778,0.3618,93223.0,93211.0,0.053713]
[1734986989978,0.3618,93223.0,93219.0,0.053709]
[1734986990179,0.004,93222.0,93220.0,0.053708]
[1734986990370,0.006,93222.0,93220.0,0.053708]
[1734986992374,0.3698,93223.0,93221.0,0.053708]
[1734986993077,0.061707,93222.0,93221.0,0.053708]
[1734986993274,0.008,93222.0,93221.0,0.053708]
[1734986993479,0.003,93222.0,93221.0,0.053708]
[1734986994172,0.008,93222.0,93221.0,0.053708]
[1734986994374,0.3688,93222.0,93210.0,0.3608]
[1734986994574,0.3608,93214.0,93188.0,0.00076]
[1734986994884,0.053726,93190.0,93180.0,0.13600867]
[1734986995069,0.053727,93188.0,93180.0,0.13600867]
[1734986995269,0.0989,93197.0,93172.0,0.39582469]
[1734986995582,0.3608,93176.0,93173.0,0.053736]
[1734986995773,0.3608,93176.0,93174.0,0.053735]
[1734986995965,0.053728,93186.0,93175.0,1.5]
[1734986996171,0.053729,93185.0,93181.0,0.05373]
[1734986996476,0.05373,93183.0,93181.0,0.05373]
[1734986997178,0.05373,93183.0,93179.0,0.053732]
[1734986997679,0.05373,93182.0,93179.0,0.053732]
[1734986998267,0.001,93185.0,93179.0,0.10627841]
[1734986998472,0.053731,93181.0,93179.0,0.10627841]
[1734986999675,0.053731,93181.0,93179.0,0.03127841]
[1734986999986,0.3608,93189.0,93175.0,1.5]
[1734987000183,0.053723,93195.0,93194.0,0.053723]
[1734987000486,0.0975,93213.0,93194.0,0.3608]
[1734987000781,0.0975,93213.0,93205.0,0.053717]
[1734987000782,0.053715,93208.0,93205.0,0.053717]
[1734987000985,0.0972,93212.0,93206.0,0.053716]
[1734987001283,0.414516,93207.0,93206.0,0.053716]
[1734987001784,0.3608,93207.0,93206.0,0.053716]
[1734987001979,0.3608,93207.0,93195.0,1.5]
[1734987002182,0.053722,93196.0,93195.0,1.5]
[1734987002486,0.053722,93196.0,93194.0,0.05280449]
[1734987002677,0.053725,93192.0,93180.0,0.13600867]
[1734987002877,0.053725,93192.0,93187.0,0.053727]
[1734987003078,0.053726,93190.0,93188.0,0.053727]
[1734987003283,0.053731,93183.0,93181.0,0.00072]
[1734987003480,0.053744,93159.0,93155.0,0.053746]
[1734987003881,0.053744,93159.0,93157.0,1.5]
[1734987004588,0.053744,93159.0,93157.0,1.553745]
[1734987005083,0.053744,93159.0,93157.0,1.5]
[1734987005971,0.053747,93154.0,93153.0,0.05258216]
[1734987006176,0.053747,93154.0,93151.0,0.053748]
[1734987006384,0.005,93159.0,93158.0,0.053744]
[1734987006983,0.002,93159.0,93158.0,0.053744]
[1734987007188,0.008,93159.0,93158.0,0.053744]
[1734987007691,0.008,93159.0,93158.0,1.553744]
[1734987008190,0.05374384,93180.0,93158.0,1.553744]
[1734987008191,0.3608,93191.0,93190.0,0.053726]
[1734987008488,0.053722,93197.0,93188.0,0.053727]
[1734987008677,0.053722,93197.0,93190.0,0.053726]
[1734987008987,0.053719,93202.0,93188.0,0.13600867]
[1734987009281,0.3608,93212.0,93195.0,0.3608]
[1734987009487,0.3608,93212.0,93210.0,0.053714]
[1734987009689,0.3608,93212.0,93203.0,0.339514]
[1734987010186,0.053723,93196.0,93188.0,0.10871733]
[1734987010394,0.3608,93196.0,93184.0,0.3608]
[1734987010582,0.053728,93186.0,93184.0,0.3608]
[1734987011281,0.053734,93177.0,93175.0,0.05467291]
[1734987011488,0.3608,93176.0,93175.0,0.05467291]
[1734987011681,0.053737,93171.0,93166.0,0.053739]
[1734987011883,0.053737,93171.0,93169.0,0.053738]
[1734987012287,0.3608,93176.0,93155.0,0.41390729]
[1734987012588,0.1005,93175.0,93166.0,0.05374]
[1734987012774,0.1005,93175.0,93156.0,1.5]
[1734987012980,0.053737,93171.0,93156.0,1.5]
[1734987013191,0.053737,93171.0,93169.0,0.053738]
[1734987013592,0.3608,93176.0,93174.0,0.053735]
[1734987013789,0.002,93177.0,93172.0,0.3608]
[1734987013990,0.053736,93173.0,93172.0,0.3608]
[1734987014189,0.053744,93159.0,93153.0,0.053747]
[1734987014487,0.3608,93173.0,93152.0,0.3608]
[1734987014488,0.053745,93158.0,93157.0,0.053745]
[1734987014686,0.3608,93163.0,93152.0,0.3608]
[1734987014887,0.3608,93163.0,93161.0,0.053743]
[1734987015685,0.3608,93163.0,93162.0,1.5]
[1734987015885,0.3618,93163.0,93161.0,0.053743]
[1734987016290,0.3608,93163.0,93161.0,0.055743]
[1734987017294,0.3608,93163.0,93162.0,0.00147068]
[1734987018398,0.3608,93163.0,93161.0,0.001]
[1734987018399,0.053742,93162.0,93161.0,0.001]
[1734987018900,0.3608,93163.0,93148.0,0.053755]
[1734987019090,0.3608,93149.0,93148.0,0.053755]
[1734987019892,0.004,93162.0,93148.0,0.053755]
[1734987020098,0.004,93162.0,93147.0,0.05387051]
[1734987020294,0.053749,93158.0,93152.0,0.053752]
[1734987020504,0.006,93162.0,93156.0,0.05375]
[1734987020798,0.006,93162.0,93143.0,0.00161049]
[1734987020999,0.3608,93154.0,93147.0,0.05375]
[1734987021206,0.3608,93154.0,93152.0,0.053748]
[1734987021596,0.001,93162.0,93161.0,0.053743]
[1734987022295,0.3608,93172.0,93164.0,0.05374]
[1734987022499,0.05374,93166.0,93164.0,0.05374]
[1734987022695,0.3608,93172.0,93165.0,1.5]
[1734987022897,0.25605407,93184.0,93182.0,0.05373]
[1734987023402,0.41512701,93188.0,93184.0,0.053729]
[1734987023699,0.3608,93188.0,93184.0,0.053729]
[1734987024102,0.3608,93188.0,93173.0,0.3608]
[1734987024400,0.3608,93188.0,93185.0,0.053728]
[1734987024789,0.3608,93188.0,93173.0,0.339528]
[1734987025102,0.3618,93188.0,93173.0,0.339528]
[1734987025405,0.3618,93188.0,93173.0,0.39667472]
[1734987025695,0.3628,93188.0,93184.0,0.053729]
[1734987025905,0.3628,93188.0,93185.0,0.053728]
[1734987026093,0.3628,93188.0,93174.0,0.053735]
[1734987026292,0.3628,93188.0,93176.0,0.053734]
[1734987026491,0.053733,93178.0,93176.0,0.053734]
[1734987026700,0.3628,93188.0,93173.0,0.39667472]
[1734987026896,0.3628,93188.0,93187.0,0.053727]
[1734987027102,0.002,93188.0,93187.0,0.053727]
[1734987028407,0.3608,93197.0,93195.0,0.053722]
[1734987029198,0.414522,93197.0,93195.0,0.053722]
[1734987029706,0.3668,93197.0,93174.0,0.00161001]
[1734987029900,0.3608,93189.0,93173.0,0.26613801]
[1734987030101,0.3608,93189.0,93174.0,0.053735]
[1734987030296,0.053735,93174.0,93173.0,0.26613801]
[1734987031114,0.414532,93180.0,93173.0,0.26613801]
[1734987031410,0.053732,93179.0,93178.0,0.053733]
[1734987032298,0.3608,93180.0,93173.0,0.32587401]
[1734987032706,0.053734,93176.0,93174.0,0.053735]
[1734987032903,0.001,93179.0,93173.0,0.26813801]
[1734987033105,0.053735,93174.0,93173.0,0.26613801]
[1734987033505,0.053735,93174.0,93173.0,0.26713801]
[1734987033807,0.053735,93174.0,93173.0,0.32087401]
[1734987034004,0.053735,93174.0,93173.0,0.26613801]
[1734987034808,0.055732,93179.0,93164.0,1.91406638]
[1734987035112,0.002,93179.0,93164.0,1.91346638]
[1734987035313,0.002,93179.0,93178.0,0.053733]
[1734987035509,0.3608,93180.0,93179.0,0.053732]
[1734987035704,0.053727,93188.0,93173.0,0.002]
[1734987035705,0.3608,93188.0,93182.0,0.05373]